Cogmind - Beta 15 *** ADVENTURER MODE // 2025.08.04 @ 16:23:42 Player: Mbreton Result: Destroyed by G-73 Enforcer with Phase Gun Performance ------------- Evolutions (9) 4500 Regions Visited (19) 3800 Robots Destroyed (148) 740 Value Destroyed (9358) 9358 Prototype IDs (0) 0 Alien Tech Used (0) 0 Bonus (7253) 7253 TOTAL SCORE: 25651 Bonus ------- High Alert Combat Kills 733 Follower Combat Kills 2478 Entered Garrisons 1200 Used RIF Installer 2500 Entered DSFs 500 Friendly Fire -158 Cogmind --------- Core Integrity 0/1600 Matter 300/300 Energy 100/100 System Corruption 9% Temperature Cool (0) Movement Core (50) Location -1/Access Parts ------- > --- POWER (3) -------- (None) > --- PROPULSION (8) --- (None) > --- UTILITY (10) ----- (None) > --- WEAPON (4) ------- (None) > --- INVENTORY (5) ---- Reinforced Antimatter Reactor Relay Coupler [Specialist] (41) Relay Coupler [Heavy] (21) Peak State ------------ > --- POWER ------------ Light Ion Engine Light Antimatter Reactor > --- PROPULSION ------- Xenon Bombardment Thruster Xenon Bombardment Thruster Xenon Bombardment Thruster Xenon Bombardment Thruster Xenon Bombardment Thruster Xenon Bombardment Thruster Xenon Bombardment Thruster > --- UTILITY ---------- Advanced Hacking Suite Relay Coupler [NC] Relay Coupler [NC] Relay Coupler [Swarmer] Relay Coupler [Grunt] Relay Coupler [Brawler] Relay Coupler [Duelist] Relay Coupler [Sentry] Relay Coupler [Sentry] > --- WEAPON ----------- Enhanced Quantum Rifle Heavy Machine Gun Heavy Machine Gun Advanced Remote Datajack > --- INVENTORY -------- Relay Coupler [Sentry] Relay Coupler [Sentry] Relay Coupler [Demolisher] Relay Coupler [Specialist] Relay Coupler [Heavy] [Rating: 93] Favorites ----------- Power Reinforced Deuterium Engine Engine Reinforced Deuterium Engine Power Core Micro Nuclear Core Reactor Light Antimatter Reactor Propulsion Carbon-fiber Leg Treads Light Treads Leg Carbon-fiber Leg Hover Unit Gravmag System Flight Unit Xenon Bombardment Thruster Utility Large Storage Unit Device Improved Terrain Scanner Storage Large Storage Unit Processor Target Analyzer Hackware Relay Coupler [Grunt] Protection Layered Medium Armor Plating Weapon Remote Datajack Energy Gun Wave Gun Energy Cannon Phase Cannon Ballistic Gun KE Penetrator Ballistic Cannon Heavy Assault Cannon Launcher Grenade Launcher Special Weapon Remote Datajack Slashing Weapon Great Axe Build | -11 -10 -10 -9 -8 -7 -7 -6 -6 -6 -6 -5 -5 -4 -4 -3 -3 -2 -2 -1 ------- Run | Yrd Mat Min Mat Mat Fac DSF Fac Gar Fac Gar Fac Gar Fac Gar Res Gar Res Gar Acc Slots Evolved 18 | . . . 2 2 2 . 2 . . . 2 . 2 . 2 . 2 . 2 Power 2 | . . . . . . . . . . . 1 . . . . . 1 . . Propulsion 6 | . . . 2 1 1 . . . . . . . . . . . 1 . 1 Utility 8 | . . . . 1 1 . 1 . . . 1 . 1 . 2 . . . 1 Weapon 2 | . . . . . . . 1 . . . . . 1 . . . . . . Parts Attached 152 | 5 2 . 3 9 1 2 5 10 . 33 8 19 4 10 . 12 8 6 15 Power 11 | . 1 . . 1 . . . 1 . 2 . 2 . 1 . 1 1 1 . Engine 7 | . 1 . . 1 . . . 1 . 1 . 2 . . . . 1 . . Core 1 | . . . . . . . . . . 1 . . . . . . . . . Reactor 3 | . . . . . . . . . . . . . . 1 . 1 . 1 . Propulsion 57 | 2 . . 2 4 1 . . 3 . 14 4 6 . 4 . 3 5 1 8 Treads 3 | . . . . . . . . . . 3 . . . . . . . . . Leg 35 | 2 . . 2 4 1 . . 3 . 8 4 6 . 4 . . . . 1 Wheel . | . . . . . . . . . . . . . . . . . . . . Hover 3 | . . . . . . . . . . 3 . . . . . . . . . Flight 16 | . . . . . . . . . . . . . . . . 3 5 1 7 Utility 50 | 1 1 . 1 2 . 1 2 4 . 10 2 8 3 4 . 5 1 2 3 Device 6 | 1 . . . . . . . 2 . . 1 . . . . . . . 2 Storage 3 | . 1 . 1 . . . . . . . . . . . . 1 . . . Processor 1 | . . . . . . . . . . 1 . . . . . . . . . Hackware 27 | . . . . . . . . 1 . 6 1 4 3 4 . 4 1 2 1 Protection 13 | . . . . 2 . 1 2 1 . 3 . 4 . . . . . . . Artifact . | . . . . . . . . . . . . . . . . . . . . Weapon 34 | 2 . . . 2 . 1 3 2 . 7 2 3 1 1 . 3 1 2 4 Energy Gun 12 | . . . . . . . . 1 . 4 1 2 . . . 2 1 . 1 Energy Cannon 1 | . . . . . . . 1 . . . . . . . . . . . . Ballistic Gun 11 | 2 . . . 1 . 1 . . . 1 . 1 . 1 . . . 2 2 Ballistic Cannon 3 | . . . . . . . 1 . . . . . 1 . . . . . 1 Launcher 2 | . . . . 1 . . 1 . . . . . . . . . . . . Special Weapon 4 | . . . . . . . . . . 2 1 . . . . 1 . . . Impact Weapon . | . . . . . . . . . . . . . . . . . . . . Slashing Weapon 1 | . . . . . . . . 1 . . . . . . . . . . . Piercing Weapon . | . . . . . . . . . . . . . . . . . . . . Special Melee Weapon . | . . . . . . . . . . . . . . . . . . . . Unidentified Prototypes . | . . . . . . . . . . . . . . . . . . . . Corrupted Parts 2 | . . . . . . . . . . 2 . . . . . . . . . System Corruption 7 | . . . . . . . . . . 7 . . . . . . . . . Parts Lost 97 | . . . . 1 . . 1 3 . 25 5 6 3 7 . 12 1 6 27 Power 7 | . . . . . . . . 1 . 2 . . 1 . . 1 . 2 . Propulsion 43 | . . . . . . . . . . 10 3 4 1 4 . 5 1 2 13 Utility 27 | . . . . 1 . . 1 2 . 7 . . 1 2 . 2 . . 11 Weapon 20 | . . . . . . . . . . 6 2 2 . 1 . 4 . 2 3 Highest Loss Streak 21 | . . . . 1 . . 1 3 . 21 2 3 1 4 . 12 1 6 15 To Critical Strikes 6 | . . . . . . . . . . 1 1 . . 1 . 3 . . . Average Backups 10 | 4 5 8 8 13 13 12 13 13 13 12 13 13 12 10 5 5 4 4 4 Power . | 1 . . . . . . 1 . 1 1 1 . . . . . . . . Propulsion 1 | 1 3 6 5 3 2 . . . 2 1 2 1 2 1 . . . . . Utility 6 | . . 1 2 6 7 7 7 8 7 7 8 10 9 8 5 4 3 4 3 Weapon 1 | . 1 1 1 1 2 2 3 1 1 1 . 1 1 . . . . . . Tool/Special . | . . . . . . . . . . . . . . . . . . . . Unused Backups 40 | . 2 1 4 5 . 5 . 2 . . 1 7 . 6 . 1 . 3 3 Power 2 | . 1 . . . . . . 1 . . . . . . . . . . . Propulsion 13 | . . . 4 4 . 1 . . . . 1 3 . . . . . . . Utility 20 | . . . . . . 4 . 1 . . . 3 . 6 . . . 3 3 Weapon 4 | . 1 1 . 1 . . . . . . . 1 . . . . . . . Tool/Special 1 | . . . . . . . . . . . . . . . . 1 . . . Average Slot Usage (%) 82 | . 97 100 94 85 59 69 69 76 86 77 89 95 87 87 80 74 65 86 52 Engine 5 | . 13 14 11 9 7 7 6 5 6 2 . 7 6 5 4 2 . 3 . Leg 24 | . 28 28 38 33 21 23 20 22 26 25 33 30 30 27 28 17 3 . . Flight 2 | . . . . . . . . . . . . . . . . 4 15 28 12 Device 3 | . 14 14 11 9 7 7 3 7 13 1 3 . . . . . . . 3 Storage 5 | . 13 14 11 9 7 7 6 6 6 6 5 5 5 3 . . . . . Hackware 16 | . . . . . . . . 2 6 14 23 21 26 30 23 30 34 39 29 Protection 4 | . . . . 8 7 7 13 10 6 3 . 6 1 1 4 2 . . . Energy Gun 2 | . . . . . . . . 2 6 7 7 5 5 1 . 2 3 3 . Ballistic Gun 6 | . 28 28 22 15 7 13 7 . . 1 1 3 . 4 4 2 . 4 1 Ballistic Cannon 1 | . . . . . . . 5 3 . . . . 4 5 4 2 . . . Special Weapon 2 | . . . . . . . . . . 3 5 4 5 3 4 2 3 3 . Peak Build Rating 93 | 7 9 9 12 35 38 47 58 60 59 60 63 78 79 86 84 87 83 93 87 Average Rating 54 | 5 8 9 11 27 37 45 54 58 59 46 57 70 73 76 79 69 66 82 57 On Entrance 48 | . 7 9 9 12 34 38 46 55 59 59 54 60 78 70 84 79 57 83 67 Naked Turns 3 | . . . . . . . . . . . . . . . . . . . 3 Heaviest Build 87 | 4 14 14 29 41 36 51 84 87 73 73 40 65 72 67 55 55 26 36 50 Greatest Support 110 | 20 20 20 40 77 90 90 90 90 90 90 100 105 105 110 110 110 42 42 30 Greatest Overweight (x) 15 | . . . . . . . . 1 . 3 . 1 . . . 3 1 1 15 Average Overweight (x) . | . . . . . . . . . . . . . . . . . . . . Largest Inventory Capacity 15 | 5 8 8 15 15 15 15 15 15 15 15 15 15 15 15 5 5 5 5 5 Average Capacity 11 | 5 7 8 12 15 15 15 15 15 15 15 15 15 15 11 5 5 5 5 5 Most Carried 15 | 5 8 8 11 15 15 15 15 15 14 15 15 15 15 15 5 5 5 5 5 Average Carried 10 | 4 5 7 8 13 13 13 14 14 14 13 14 14 12 10 5 4 4 4 4 Final Capacity 15 | 5 8 8 15 15 15 15 15 15 15 15 15 15 15 5 5 5 5 5 5 Final Carried 15 | 5 8 8 11 15 13 15 15 14 14 15 14 15 11 5 5 5 4 5 3 Class Distribution -------------------- 30% | Mutant 12% | Bothacker-Gunner 8% | Botlord-Tank 7% | Scavenger-Tank 7% | Scavenger-Mutant 7% | Bothacker-Mutant 6% | Bothacker-Tank 4% | Botlord-Mutant 3% | Scavenger-Sprinter 3% | Botlord-Sprinter Dominant Class ---------------- Mutant | -10/Materials Mutant | -10/Mines Mutant | -9/Materials Mutant | -8/Materials Mutant | -7/Factory Mutant | -7/DSF Tank | -6/Factory Mutant | -6/Garrison Bothacker-Mutant | -6/Factory Bothacker-Mutant | -6/Garrison Bothacker-Skirmisher | -5/Factory Scavenger-Tank | -5/Garrison Bothacker-Gunner | -4/Factory Bothacker-Gunner | -4/Garrison Botlord-Tank | -3/Research Botlord-Tank | -3/Garrison Botlord-Mutant | -2/Research Botlord-Sprinter | -2/Garrison Scavenger-Sprinter | -1/Access Resources | -11 -10 -10 -9 -8 -7 -7 -6 -6 -6 -6 -5 -5 -4 -4 -3 -3 -2 -2 -1 ----------- Run | Yrd Mat Min Mat Mat Fac DSF Fac Gar Fac Gar Fac Gar Fac Gar Res Gar Res Gar Acc Matter Collected 4698 | 220 46 64 122 259 . 130 43 504 . 494 313 431 213 542 122 444 105 274 372 Remotely . | . . . . . . . . . . . . . . . . . . . . Salvage Created 5872 | 10 52 77 152 407 . 224 126 880 . 659 542 444 586 443 67 534 231 132 306 Parts 306 | 3 5 4 14 28 . 18 7 36 . 29 29 20 24 25 5 18 14 4 23 Haulers Intercepted 1 | . . . . . . . . . . . . . . . . . 1 . . Recyclers Shooed 3 | . 1 . . . . . . . . . 1 . . . 1 . . . . Parts Field Recycled . | . . . . . . . . . . . . . . . . . . . . Retrieved Matter . | . . . . . . . . . . . . . . . . . . . . Parts Self-Destructed . | . . . . . . . . . . . . . . . . . . . . Prevented . | . . . . . . . . . . . . . . . . . . . . Kills | -11 -10 -10 -9 -8 -7 -7 -6 -6 -6 -6 -5 -5 -4 -4 -3 -3 -2 -2 -1 ------- Run | Yrd Mat Min Mat Mat Fac DSF Fac Gar Fac Gar Fac Gar Fac Gar Res Gar Res Gar Acc Combat Hostiles Destroyed 136 | . 2 2 3 9 . 9 4 18 . 15 11 9 5 17 3 11 4 3 11 Melee 11 | . . . . . . . . 10 . 1 . . . . . . . . . Guns 65 | . 2 2 3 9 . 2 . . . 5 11 8 3 7 . 1 4 3 5 Cannons 39 | . . . . . . . 1 8 . . . . 2 10 3 9 . . 6 AOE 19 | . . . . . . 7 3 . . 9 . . . . . . . . . Classes Destroyed 17 | 1 2 1 1 1 . 3 . 3 . 1 1 . 2 . . . 1 . . Worker 3 | . . . . . . . . . . . 1 . 1 . . . 1 . . Builder 1 | . . . . . . . . . . . . . 1 . . . . . . Tunneler 1 | 1 . . . . . . . . . . . . . . . . . . . Hauler 1 | . . . . . . . . . . . . . . . . . 1 . . Recycler 2 | . . . . . . . . . . . . . 2 . . . . . . Watcher 3 | . 1 . 1 . . . . . . . 1 . . . . . . . . Swarmer 48 | . 2 . . . . 3 . 1 . . 3 3 . 14 3 3 4 2 10 Cutter 5 | . . . . . . 3 . . . 2 . . . . . . . . . Grunt 40 | . . 2 2 4 . . . 13 . 8 1 3 . 4 . 3 . . . Brawler 2 | . . . . . . . . 1 . 1 . . . . . . . . . Duelist 2 | . . . . 1 . . . . . 1 . . . . . . . . . Sentry 11 | . . . 1 4 . . 1 1 . . 2 1 1 . . . . . . Demolisher 1 | . . . . . . . . 1 . . . . . . . . . . . Specialist 2 | . . . . . . 2 . . . . . . . . . . . . . Hunter 14 | . . . . . . 1 3 . . . 5 . 2 . . 2 . 1 . Programmer 10 | . . . . . . . . 1 . 2 . 2 1 . . 3 . . 1 Behemoth 2 | . . . . . . . . . . 1 . . 1 . . . . . . Best Kill Streak 9 | 1 3 2 1 2 . 4 3 6 . 8 5 3 4 6 3 9 5 2 5 Combat Bots Only 9 | . 2 2 1 2 . 4 3 6 . 8 4 3 2 6 3 9 4 2 5 Max Kills in Single Turn 3 | 1 1 1 1 1 . 3 2 1 . 3 2 1 2 2 1 2 1 1 1 Gunslinging . | . . . . . . . . . . . . . . . . . . . . Exploded 3 | . . . . . . 3 2 . . 3 . . . . . . . . . Melee 1 | . . . . . . . . 1 . 1 . . . . . . . . . Uniques/NPCs Destroyed . | . . . . . . . . . . . . . . . . . . . . Combat | -11 -10 -10 -9 -8 -7 -7 -6 -6 -6 -6 -5 -5 -4 -4 -3 -3 -2 -2 -1 -------- Run | Yrd Mat Min Mat Mat Fac DSF Fac Gar Fac Gar Fac Gar Fac Gar Res Gar Res Gar Acc Hostile Shots Fired 1689 | . 15 9 26 52 . 50 183 155 . 261 88 93 45 113 68 136 9 41 345 Missed 585 | . 9 2 10 17 . 14 84 45 . 67 25 31 25 47 19 42 4 16 128 Deflected 20 | . . . . . . . . . . . . . . . . . . . 20 Hits 1104 | . 6 7 16 35 . 36 99 110 . 194 63 62 20 66 49 94 5 25 217 Melee 40 | . . . . 3 . 1 . 2 . 34 . . . . . . . . . Projectile 1064 | . 6 7 16 32 . 35 99 108 . 160 63 62 20 66 49 94 5 25 217 AOE 11 | . . . . . . 3 . 5 . 3 . . . . . . . . . Critical Strikes 48 | . . . . 4 . 3 2 2 . 12 4 1 1 4 1 6 . 1 7 Damage Taken 15960 | . 41 80 180 459 . 705 581 1501 . 3144 738 1025 332 860 815 1198 113 618 3570 Core 2954 | . 14 14 20 22 . 59 22 45 . 468 76 100 6 84 135 138 18 114 1619 Absorbed by Shields . | . . . . . . . . . . . . . . . . . . . . Ignored by Resistances 5050 | . 12 23 50 125 . 197 438 495 . 1122 210 287 92 256 226 339 31 169 978 Regen/Repaired (Parts) 809 | . . . . 33 . . . . . . . . . . 776 . . . . Core Remaining (%) 85 | 100 . 88 95 96 . 91 . . . 37 . 82 . 92 . 79 . 90 . Volleys Fired 501 | 1 8 6 23 35 . 13 13 23 . 52 41 56 32 41 22 33 16 41 45 Largest 3 | 2 2 2 2 2 . 2 3 2 . 3 2 2 2 3 2 3 1 3 3 Hottest 171 | 40 40 40 40 45 . 55 154 129 . 152 129 138 131 131 83 171 65 125 121 Shots Fired 838 | 2 16 12 46 70 . 26 35 39 . 63 74 91 47 81 36 65 16 57 62 Gun 569 | 2 16 12 46 70 . 22 15 . . 27 68 81 15 40 14 44 13 42 42 Cannon 164 | . . . . . . . 15 39 . 6 . . 16 34 14 20 . . 20 Launcher 15 | . . . . . . 4 5 . . 6 . . . . . . . . . Special 90 | . . . . . . . . . . 24 6 10 16 7 8 1 3 15 . Kinetic 477 | 2 16 12 46 70 . 22 26 20 . 5 19 23 16 61 28 45 . 21 45 Thermal 222 | . . . . . . . 4 19 . 17 26 58 15 13 . 19 13 21 17 Explosive 15 | . . . . . . 4 5 . . 6 . . . . . . . . . Electromagnetic 34 | . . . . . . . . . . 11 23 . . . . . . . . Robot Hit Streak 20 | 2 8 6 16 16 . 12 8 10 . 19 20 19 14 16 8 13 8 17 20 Robot Miss Streak 4 | . 3 1 3 3 . 2 3 3 . 4 4 3 3 4 3 2 1 2 3 Penetration Max 1 | . . . . . . . . . . . . 1 . 1 1 1 . . . Secondary Targets 7 | . . 1 . 1 . . . . . . 2 3 . . . . . . . Max Gunslinging Chain 1 | . . 1 . 1 . . . . . . 1 1 . . . . . . . Shots Hit Robots 662 | 2 9 10 37 58 . 20 25 70 . 66 53 59 35 44 27 50 13 40 44 Core Hits 332 | 1 4 4 12 27 . 16 23 49 . 37 46 22 10 23 9 18 6 7 18 Critical Kills . | . . . . . . . . . . . . . . . . . . . . Critical Parts Destroyed 2 | . . . . . . . . . . . . 1 . . . 1 . . . Critical Strikes 23 | . . . . . . . . 7 . 3 1 3 2 2 . 4 . . 1 Burn 4 | . . . . . . . . . . . . 2 . . . 2 . . . Destroy 2 | . . . . . . . . . . . . 1 . . . 1 . . . Blast 6 | . . . . . . . . . . . . . 2 2 . 1 . . 1 Corrupt 1 | . . . . . . . . . . . 1 . . . . . . . . Sever 10 | . . . . . . . . 7 . 3 . . . . . . . . . Melee Attacks 75 | . . . . . . . . 55 . 20 . . . . . . . . . Impact . | . . . . . . . . . . . . . . . . . . . . Slashing 75 | . . . . . . . . 55 . 20 . . . . . . . . . Piercing . | . . . . . . . . . . . . . . . . . . . . Sneak Attacks . | . . . . . . . . . . . . . . . . . . . . Combat Hostiles . | . . . . . . . . . . . . . . . . . . . . Follow-up Attacks . | . . . . . . . . . . . . . . . . . . . . Damage Inflicted 17190 | 17 113 114 387 903 . 619 753 2381 . 1819 1126 1204 951 1507 736 1869 334 637 1720 Guns 8693 | 17 113 114 387 903 . 344 147 . . 466 1066 1204 280 540 274 820 334 637 1047 Cannons 5381 | . . . . . . . 340 1071 . 165 . . 671 967 462 1049 . . 656 Explosions 1315 | . . . . . . 275 266 . . 714 60 . . . . . . . . Melee 1784 | . . . . . . . . 1310 . 474 . . . . . . . . . Ramming 17 | . . . . . . . . . . . . . . . . . . . 17 Kinetic 9402 | 17 113 114 387 903 . 344 365 531 . 95 414 397 671 1295 736 1550 . 355 1115 Thermal 4494 | . . . . . . . 122 540 . 591 419 807 280 212 . 319 334 282 588 Explosive 1033 | . . . . . . 275 266 . . 492 . . . . . . . . . Electromagnetic 460 | . . . . . . . . . . 167 293 . . . . . . . . Impact . | . . . . . . . . . . . . . . . . . . . . Slashing 1784 | . . . . . . . . 1310 . 474 . . . . . . . . . Piercing . | . . . . . . . . . . . . . . . . . . . . Highest Corruption 28 | . . . . 2 . . . 1 1 28 . 1 2 2 . . . . 9 Average Corruption 4 | . . . . 1 . . . 1 1 17 . 1 1 2 . . . . 3 Corruption Purged . | . . . . . . . . . . . . . . . . . . . . Corruption Blocked . | . . . . . . . . . . . . . . . . . . . . Effects 62 | . . . . 8 . . . 6 1 32 . 7 . 7 . . . . 1 Message Errors 16 | . . . . . . . . 2 . 10 . 1 . 3 . . . . . Matter Fused 19 | . . . . 3 . . . 3 . 7 . 2 . 3 . . . . 1 Heat Flow Errors 6 | . . . . 1 . . . 1 . 3 . 1 . . . . . . . Energy Discharges 8 | . . . . 3 . . . . . 4 . 1 . . . . . . . Data Loss (minor) 6 | . . . . . . . . . 1 5 . . . . . . . . . Data Loss (major) 2 | . . . . 1 . . . . . . . 1 . . . . . . . Misfires 1 | . . . . . . . . . . . . 1 . . . . . . . Alerts 3 | . . . . . . . . . . 2 . . . 1 . . . . . Weapon Failures 1 | . . . . . . . . . . 1 . . . . . . . . . Overload Shots . | . . . . . . . . . . . . . . . . . . . . Overflow Damage 256 | . . . . . . . . 26 . . 12 . 22 13 65 53 . . 65 Projectiles 218 | . . . . . . . . . . . . . 22 13 65 53 . . 65 Explosions 12 | . . . . . . . . . . . 12 . . . . . . . . Melee 26 | . . . . . . . . 26 . . . . . . . . . . . Knockbacks 30 | . . . . . . . 4 8 . . . . 1 4 6 4 . . 3 Impact . | . . . . . . . . . . . . . . . . . . . . Kinetic 28 | . . . . . . . 4 8 . . . . 1 4 4 4 . . 3 Secondary 2 | . . . . . . . . . . . . . . . 2 . . . . Self-Inflicted Damage 168 | . . . . . . 35 60 . . 26 39 . . . . . . . 8 Shots 6 | . . . . . . 2 2 . . 1 1 . . . . . . . . Rammed 2 | . . . . . . . . . . . . . . . . . . . 2 Targets Rammed 2 | . . . . . . . . . . . . . . . . . . . 2 Kicked . | . . . . . . . . . . . . . . . . . . . . Crushed . | . . . . . . . . . . . . . . . . . . . . Highest Temperature 552 | . . 19 6 200 . . 311 552 . 497 150 483 108 93 46 252 63 335 103 Average Temperature 103 | . . 10 3 36 . . 105 192 . 130 35 145 38 27 19 78 34 128 30 Received Heat Transfer 3295 | . . 57 93 261 . . 138 726 . 1027 54 321 45 87 9 9 9 99 360 Effects 20 | . . . . . . . . 8 . 3 . 7 . . . . . 2 . Shutdowns 6 | . . . . . . . . . . 1 . 4 . . . . . 1 . Energy Bleed 5 | . . . . . . . . 2 . 1 . 1 . . . . . 1 . Interference 6 | . . . . . . . . 5 . . . 1 . . . . . . . Matter Decay 1 | . . . . . . . . . . 1 . . . . . . . . . Short Circuit 2 | . . . . . . . . 1 . . . 1 . . . . . . . Siege Activations . | . . . . . . . . . . . . . . . . . . . . Martial Activations . | . . . . . . . . . . . . . . . . . . . . Shielding Activations 1 | . . . . . . . . . . . . . . . . . . . 1 Total Turns 28 | . . . . . . . . . . . . . . . . . . . 28 Longest Duration 28 | . . . . . . . . . . . . . . . . . . . 28 Robots Disrupted . | . . . . . . . . . . . . . . . . . . . . Combat Hostiles . | . . . . . . . . . . . . . . . . . . . . Robots Corrupted . | . . . . . . . . . . . . . . . . . . . . Combat Hostiles . | . . . . . . . . . . . . . . . . . . . . Parts Fried 1 | . . . . . . . . . . . 1 . . . . . . . . Impact Corruptions 1 | . . . . . . . . . . . . . . . 1 . . . . Robots Melted 2 | . . . . . . . . . . . . 1 . . . 1 . . . Combat Hostiles 2 | . . . . . . . . . . . . 1 . . . 1 . . . Parts Melted 13 | . . . . . . . . . . . 3 5 . . . 2 1 2 . Heat Transferred 6544 | . . . . . . . 148 610 . 755 753 1284 407 333 . 922 407 333 592 Parts Sabotaged . | . . . . . . . . . . . . . . . . . . . . Parts Stolen . | . . . . . . . . . . . . . . . . . . . . Parts Stripped . | . . . . . . . . . . . . . . . . . . . . Power Chain Reactions 2 | . . . . . . . . . . 1 1 . . . . . . . . Alert | -11 -10 -10 -9 -8 -7 -7 -6 -6 -6 -6 -5 -5 -4 -4 -3 -3 -2 -2 -1 ------- Run | Yrd Mat Min Mat Mat Fac DSF Fac Gar Fac Gar Fac Gar Fac Gar Res Gar Res Gar Acc Maximum Alert Level 3 | . . . . . . 1 1 3 1 2 1 3 2 3 2 2 1 2 1 Low Security (%) 35 | 100 100 100 100 100 100 93 51 17 . . 21 5 . . . . 76 27 42 Level 1 29 | . . . . . . 6 48 34 100 98 78 28 . 9 . 20 23 31 57 Level 2 26 | . . . . . . . . 29 . 1 . 52 99 27 100 79 . 40 . Level 3 9 | . . . . . . . . 18 . . . 13 . 63 . . . . . Level 4 . | . . . . . . . . . . . . . . . . . . . . Level 5 . | . . . . . . . . . . . . . . . . . . . . High Security . | . . . . . . . . . . . . . . . . . . . . Max Security . | . . . . . . . . . . . . . . . . . . . . Sterilizations 1 | . . . . . . 1 . . . . . . . . . . . . . Peak Influence 991 | 5 47 50 121 70 4 336 263 791 359 457 311 857 636 991 569 519 220 554 303 Initial 485 | . . . . 22 . 1 152 156 359 209 168 183 389 388 485 285 220 111 273 Average 323 | . 10 11 68 17 . 81 192 446 350 328 230 476 546 721 488 429 175 331 213 Influence Increases 6993 | 5 63 50 272 339 4 335 203 665 . 512 520 834 551 793 224 346 108 669 500 Destroy 0b10 Robot/C 4080 | . 40 40 200 260 . 180 80 360 . 340 300 500 300 460 160 240 80 320 220 Destroy 0b10 Robot/NC 85 | 5 5 . 5 . . . . . . . 20 . 35 . . . 15 . . Destroy Leader 642 | . 12 10 52 70 . 30 30 30 . 60 64 30 72 50 20 20 12 40 40 Allied During Kill 214 | . . . 12 . . . . . . 7 25 13 43 42 18 13 1 40 . Successful Hack 103 | . 6 . . 9 4 . 24 12 . 14 . 12 . 12 . . . 10 . Disable Machine 108 | . . . . . . 18 18 . . . 36 . 9 9 18 . . . . Anti-Garrison Action 750 | . . . . . . . . 150 . 50 . 200 . 150 . 50 . 150 . Destroy Structure 456 | . . . 3 . . 17 36 68 . 41 30 49 92 40 8 8 . 49 15 Partial Spotted 15 | . . . . . . . . . . . . . . . . . . . 15 Lose Combat Pursuer 540 | . . . . . . 90 15 45 . . 45 30 . 30 . 15 . 60 210 Influence Decreases 6770 | 5 63 50 210 401 . 3 284 129 452 480 593 275 778 432 786 324 391 317 797 Entered New Map 3101 | . . . . 40 . 3 184 99 432 130 203 115 468 242 506 144 231 57 247 Time Decay 1780 | 5 63 50 170 332 . . 90 . 20 . 240 . 150 . 250 . 130 . 280 Lost Part 970 | . . . . 10 . . 10 30 . 250 50 60 30 70 . 120 10 60 270 Lost Ally 919 | . . . 40 19 . . . . . 100 100 100 130 120 30 60 20 200 . Squads Dispatched 21 | . . . 2 . . 2 4 . . . 4 . 5 . 1 . 2 . 1 Investigation . | . . . . . . . . . . . . . . . . . . . . Extermination 2 | . . . . . . . . . . . . . . . . . 1 . 1 Reinforcement 10 | . . . 2 . . 2 1 . . . 1 . 3 . 1 . . . . Assault . | . . . . . . . . . . . . . . . . . . . . Garrison 9 | . . . . . . . 3 . . . 3 . 2 . . . 1 . . Intercept . | . . . . . . . . . . . . . . . . . . . . Searches Triggered . | . . . . . . . . . . . . . . . . . . . . Construction Impeded . | . . . . . . . . . . . . . . . . . . . . Haulers Reinforced 2 | . . . . . . . . . . . 1 . 1 . . . . . . Active Scanning Responses . | . . . . . . . . . . . . . . . . . . . . Cargo Convoy Interrupts . | . . . . . . . . . . . . . . . . . . . . Stealth | -11 -10 -10 -9 -8 -7 -7 -6 -6 -6 -6 -5 -5 -4 -4 -3 -3 -2 -2 -1 --------- Run | Yrd Mat Min Mat Mat Fac DSF Fac Gar Fac Gar Fac Gar Fac Gar Res Gar Res Gar Acc Distress Signals 14 | . . . 1 . . . . . . . 7 . 5 . . . . . 1 Communications Jammed 74 | . . . . . . . . . . . . . . . . . 28 . 46 Distress Signals 74 | . . . . . . . . . . . . . . . . . 28 . 46 Times Spotted 330 | . 5 2 15 13 . 13 7 23 . 26 32 28 24 32 14 14 12 26 44 Peak Tracking Total 16 | . 4 2 5 3 . 5 5 6 . 11 9 7 6 8 5 7 5 9 16 Tactical Retreats 23 | . . . . . . 5 1 2 . . 2 2 . 2 . 1 . 4 4 Traps | -11 -10 -10 -9 -8 -7 -7 -6 -6 -6 -6 -5 -5 -4 -4 -3 -3 -2 -2 -1 ------- Run | Yrd Mat Min Mat Mat Fac DSF Fac Gar Fac Gar Fac Gar Fac Gar Res Gar Res Gar Acc Traps Triggered 21 | . . . . 2 . 1 . 3 . 5 . 3 . 4 . . . 3 . Indirectly . | . . . . . . . . . . . . . . . . . . . . Trap Hack Attempts . | . . . . . . . . . . . . . . . . . . . . Triggered . | . . . . . . . . . . . . . . . . . . . . Disarmed . | . . . . . . . . . . . . . . . . . . . . Reprogrammed . | . . . . . . . . . . . . . . . . . . . . Reused . | . . . . . . . . . . . . . . . . . . . . Traps Extracted . | . . . . . . . . . . . . . . . . . . . . Installed . | . . . . . . . . . . . . . . . . . . . . Triggered . | . . . . . . . . . . . . . . . . . . . . Machines | -11 -10 -10 -9 -8 -7 -7 -6 -6 -6 -6 -5 -5 -4 -4 -3 -3 -2 -2 -1 ---------- Run | Yrd Mat Min Mat Mat Fac DSF Fac Gar Fac Gar Fac Gar Fac Gar Res Gar Res Gar Acc Machines Disabled 26 | . . . . . . 2 2 3 . 1 4 2 1 4 2 1 . 4 . Max in Single Turn 1 | . . . . . . 1 1 1 . 1 1 1 . 1 1 1 . 1 . Garrison Relay 13 | . . . . . . . . 3 . 1 . 2 . 3 . 1 . 3 . Machines Repaired . | . . . . . . . . . . . . . . . . . . . . Machines Dismantled . | . . . . . . . . . . . . . . . . . . . . Machines Sabotaged . | . . . . . . . . . . . . . . . . . . . . Overloaded Fab Kills . | . . . . . . . . . . . . . . . . . . . . Hacking | -11 -10 -10 -9 -8 -7 -7 -6 -6 -6 -6 -5 -5 -4 -4 -3 -3 -2 -2 -1 --------- Run | Yrd Mat Min Mat Mat Fac DSF Fac Gar Fac Gar Fac Gar Fac Gar Res Gar Res Gar Acc Machines Accessed 32 | . 4 . 3 3 1 . 2 1 1 2 2 3 2 2 1 . 2 2 1 Terminals 20 | . 4 . 1 1 1 . 1 1 . 2 1 3 . 2 . . . 2 1 Fabricators . | . . . . . . . . . . . . . . . . . . . . Repair Stations 2 | . . . . 1 . . . . . . . . 1 . . . . . . Recycling Units 2 | . . . 1 . . . . . . . . . . . . . 1 . . Scanalyzers 2 | . . . 1 1 . . . . . . . . . . . . . . . Garrison Access 6 | . . . . . . . 1 . 1 . 1 . 1 . 1 . 1 . . Total Hacks 69 | . 8 . 13 12 2 . 3 1 1 4 4 5 2 5 1 . 3 4 1 Successful 45 | . 4 . 12 10 1 . 2 1 1 2 1 2 1 2 1 . 2 2 1 Failed 24 | . 4 . 1 2 1 . 1 . . 2 3 3 1 3 . . 1 2 . Catastrophic . | . . . . . . . . . . . . . . . . . . . . Database Lockouts . | . . . . . . . . . . . . . . . . . . . . Manual . | . . . . . . . . . . . . . . . . . . . . Terminals 38 | . 8 . 2 2 2 . 1 1 . 4 3 5 . 5 . . . 4 1 Fabricators . | . . . . . . . . . . . . . . . . . . . . Repair Stations 4 | . . . . 3 . . . . . . . . 1 . . . . . . Recycling Units 5 | . . . 3 . . . . . . . . . . . . . 2 . . Scanalyzers 15 | . . . 8 7 . . . . . . . . . . . . . . . Garrison Access 7 | . . . . . . . 2 . 1 . 1 . 1 . 1 . 1 . . Terminal Hacks 20 | . 4 . 2 2 1 . 1 1 . 2 . 2 . 2 . . . 2 1 Open Door 1 | . . . . . . . . . . 1 . . . . . . . . . Open DSF 1 | . . . . . 1 . . . . . . . . . . . . . . Branch Access Points 1 | . 1 . . . . . . . . . . . . . . . . . . Emergency Access Points 4 | . . . . . . . . 1 . . . 1 . 1 . . . 1 . Scanalyzer Index 2 | . 1 . . 1 . . . . . . . . . . . . . . . Locate Traps 2 | . 1 . . 1 . . . . . . . . . . . . . . . Maintenance Status 2 | . 1 . 1 . . . . . . . . . . . . . . . . Recall Investigation 1 | . . . . . . . . . . . . . . . . . . . 1 Recall Reinforcements 1 | . . . 1 . . . . . . . . . . . . . . . . Zone Layout 1 | . . . . . . . 1 . . . . . . . . . . . . Garrison Registry 1 | . . . . . . . . . . . . . . 1 . . . . . Patrol Navigation 1 | . . . . . . . . . . . . 1 . . . . . . . Security Stations 2 | . . . . . . . . . . 1 . . . . . . . 1 . Fabricator Hacks . | . . . . . . . . . . . . . . . . . . . . Repair Station Hacks 2 | . . . . 2 . . . . . . . . . . . . . . . Scan Component 1 | . . . . 1 . . . . . . . . . . . . . . . Repair 1 | . . . . 1 . . . . . . . . . . . . . . . Recycling Unit Hacks 3 | . . . 2 . . . . . . . . . . . . . 1 . . Report Inventory 2 | . . . 1 . . . . . . . . . . . . . 1 . . Retrieve Components 1 | . . . 1 . . . . . . . . . . . . . . . . Scanalyzer 14 | . . . 8 6 . . . . . . . . . . . . . . . Insert Component 7 | . . . 4 3 . . . . . . . . . . . . . . . Analyze 7 | . . . 4 3 . . . . . . . . . . . . . . . Garrison Access Hacks 6 | . . . . . . . 1 . 1 . 1 . 1 . 1 . 1 . . Unlock Access 6 | . . . . . . . 1 . 1 . 1 . 1 . 1 . 1 . . Unauthorized Hacks . | . . . . . . . . . . . . . . . . . . . . Terminals . | . . . . . . . . . . . . . . . . . . . . Fabricators . | . . . . . . . . . . . . . . . . . . . . Repair Stations . | . . . . . . . . . . . . . . . . . . . . Recycling Units . | . . . . . . . . . . . . . . . . . . . . Scanalyzers . | . . . . . . . . . . . . . . . . . . . . Garrison Access . | . . . . . . . . . . . . . . . . . . . . Data Cores Recovered . | . . . . . . . . . . . . . . . . . . . . Used . | . . . . . . . . . . . . . . . . . . . . Hacking Detections 15 | . 1 . . 1 . . 2 . . 1 2 3 1 1 . . 1 1 1 Full Trace Events . | . . . . . . . . . . . . . . . . . . . . Feedback Events . | . . . . . . . . . . . . . . . . . . . . Feedback Blocked . | . . . . . . . . . . . . . . . . . . . . Robot Schematics Acquired . | . . . . . . . . . . . . . . . . . . . . Robots Built . | . . . . . . . . . . . . . . . . . . . . Authchips . | . . . . . . . . . . . . . . . . . . . . Time . | . . . . . . . . . . . . . . . . . . . . Total Robot Build Rating . | . . . . . . . . . . . . . . . . . . . . Part Schematics Acquired 7 | . . . 4 3 . . . . . . . . . . . . . . . Parts Built . | . . . . . . . . . . . . . . . . . . . . Authchips . | . . . . . . . . . . . . . . . . . . . . Time . | . . . . . . . . . . . . . . . . . . . . Total Part Build Rating . | . . . . . . . . . . . . . . . . . . . . Parts Repaired 1 | . . . . 1 . . . . . . . . . . . . . . . Time 26 | . . . . 26 . . . . . . . . . . . . . . . Parts Recycled . | . . . . . . . . . . . . . . . . . . . . Recycled Matter . | . . . . . . . . . . . . . . . . . . . . Retrieved Matter . | . . . . . . . . . . . . . . . . . . . . Retrieved Components 10 | . . . 10 . . . . . . . . . . . . . . . . Parts Scanalyzed 7 | . . . 4 3 . . . . . . . . . . . . . . . Part Schematics Acquired 7 | . . . 4 3 . . . . . . . . . . . . . . . Parts Damaged . | . . . . . . . . . . . . . . . . . . . . Bothacking | -11 -10 -10 -9 -8 -7 -7 -6 -6 -6 -6 -5 -5 -4 -4 -3 -3 -2 -2 -1 ------------ Run | Yrd Mat Min Mat Mat Fac DSF Fac Gar Fac Gar Fac Gar Fac Gar Res Gar Res Gar Acc Used RIF Installer 5 | . . . . . . . . 1 . 1 . 1 . 1 . 1 . . . Coupler Efficiency 1 | . . . . . . . . . . 1 . . . . . . . . . Hotswap 1 | . . . . . . . . . . . . 1 . . . . . . . Signal Jammer 1 | . . . . . . . . . . . . . . . . 1 . . . Robot Detection 1 | . . . . . . . . . . . . . . 1 . . . . . Robots Hacked 62 | . . . . . . . . . . 8 6 10 14 5 5 1 3 10 . Non-combat 7 | . . . . . . . . . . . . . 4 . 3 . . . . Combat 55 | . . . . . . . . . . 8 6 10 10 5 2 1 3 10 . Robot Hacks Applied 66 | . . . . . . . . . . 8 6 10 16 6 6 1 3 10 . parse_system 3 | . . . . . . . . . . . . . 1 . 1 1 . . . map_walls 1 | . . . . . . . . . . . . . 1 . . . . . . find_station 1 | . . . . . . . . . . . . . 1 . . . . . . find_garrison 2 | . . . . . . . . . . . 1 . . . 1 . . . . scatter_targeting 1 | . . . . . . . . . . . . 1 . . . . . . . spike_heat 1 | . . . . . . . . . . . 1 . . . . . . . . amplify_resonance 1 | . . . . . . . . . . . . 1 . . . . . . . disable_weapons 3 | . . . . . . . . . . . 1 . 1 1 . . . . . reboot_system 1 | . . . . . . . . . . . . 1 . . . . . . . overwrite_iff 16 | . . . . . . . . . . . 1 3 2 2 1 . . 7 . streamctrl_high 1 | . . . . . . . . . . . 1 . . . . . . . . formatsys_low 6 | . . . . . . . . . . . . . 3 . 3 . . . . formatsys_high 29 | . . . . . . . . . . 8 1 4 7 3 . . 3 3 . Relay Couplers Released 56 | . . . . . . . . 13 . 8 . 8 . 13 . 5 . 9 . Machine Destruction 52 | . . . . . . . . 13 . 4 . 8 . 13 . 5 . 9 . Programmers 4 | . . . . . . . . . . 4 . . . . . . . . . Attached 25 | . . . . . . . . . . 6 1 4 3 3 . 4 1 2 1 Fabnet Peak Effective % . | . . . . . . . . . . . . . . . . . . . . Robots Rewired 4 | . . . . . . . . . . 2 . . . . . . . 2 . Allies Hacked 1 | . . . . . . . . . . 1 . . . . . . . . . Hacks Repelled . | . . . . . . . . . . . . . . . . . . . . Allies | -11 -10 -10 -9 -8 -7 -7 -6 -6 -6 -6 -5 -5 -4 -4 -3 -3 -2 -2 -1 -------- Run | Yrd Mat Min Mat Mat Fac DSF Fac Gar Fac Gar Fac Gar Fac Gar Res Gar Res Gar Acc Total Allies 59 | . . 3 . . . . . . . 10 3 7 12 5 4 . 3 12 . Largest Group 6 | . . 3 3 1 . . . . . 6 5 2 5 4 4 4 2 4 . Highest-Rated Group 269 | . . 40 40 16 . . . . . 180 151 114 269 194 152 142 86 264 . Highest-Rated Ally 148 | . . 16 16 16 . . . . . 32 49 85 85 50 56 49 64 148 . Initial Warlord ECA Mod 18 | . . . . . . . 9 9 . . . . . . . . . . . Total Orders 8 | . . . . . . . . . . . . 1 . 1 6 . . . . STAY 1 | . . . . . . . . . . . . . . . 1 . . . . FOLLOW 2 | . . . . . . . . . . . . . . . 2 . . . . GUARD 1 | . . . . . . . . . . . . . . 1 . . . . . AID 4 | . . . . . . . . . . . . 1 . . 3 . . . . Ally Attacks 353 | . . . 39 8 . . . . . 21 44 43 50 42 28 8 6 64 . Total Damage 9719 | . . . 350 107 . . . . . 539 973 1258 1821 1301 787 262 315 2006 . Kills 75 | . . . 7 4 . . . . . 2 7 16 13 6 5 1 1 13 . Allies Corrupted 3 | . . . . . . . . . . 1 . . 2 . . . . . . Allies Melted . | . . . . . . . . . . . . . . . . . . . . Intel | -11 -10 -10 -9 -8 -7 -7 -6 -6 -6 -6 -5 -5 -4 -4 -3 -3 -2 -2 -1 ------- Run | Yrd Mat Min Mat Mat Fac DSF Fac Gar Fac Gar Fac Gar Fac Gar Res Gar Res Gar Acc Active Infowar (turns) 2853 | 192 268 212 384 944 47 301 120 9 . . 364 12 . . . . . . . Sensors 376 | . . . . . . . . . . . 364 12 . . . . . . . Terrain 2468 | 192 268 212 384 944 47 301 120 . . . . . . . . . . . . ECM 9 | . . . . . . . . 9 . . . . . . . . . . . Robot Analysis Total . | . . . . . . . . . . . . . . . . . . . . Derelict Logs Recovered . | . . . . . . . . . . . . . . . . . . . . Drone Launches . | . . . . . . . . . . . . . . . . . . . . Drone Recoveries . | . . . . . . . . . . . . . . . . . . . . Exploration | -11 -10 -10 -9 -8 -7 -7 -6 -6 -6 -6 -5 -5 -4 -4 -3 -3 -2 -2 -1 ------------- Run | Yrd Mat Min Mat Mat Fac DSF Fac Gar Fac Gar Fac Gar Fac Gar Res Gar Res Gar Acc Turns Passed 9610 | 253 268 212 384 944 47 301 195 1095 52 884 480 1245 319 854 501 425 260 330 561 Spaces Moved 6102 | 84 197 162 224 542 33 161 101 599 40 474 279 747 181 553 150 321 213 527 514 Core 116 | 16 . . . . . . . . . . . . . . . . . . 100 Treads 41 | . . . . . . . . . . 41 . . . . . . . . . Legs 4580 | 68 197 162 224 542 33 161 101 599 40 412 279 747 181 553 150 131 . . . Wheels . | . . . . . . . . . . . . . . . . . . . . Hover 21 | . . . . . . . . . . 21 . . . . . . . . . Flight 1344 | . . . . . . . . . . . . . . . . 190 213 527 414 Fastest Speed 22 | 50 120 120 120 120 140 140 140 130 130 56 120 120 120 120 120 44 22 22 28 Average Speed 106 | 106 120 120 120 129 140 140 140 136 130 132 120 121 120 120 120 91 61 25 43 Slowest Speed 800 | 120 120 120 120 136 140 140 140 250 130 240 120 190 120 120 120 290 124 120 800 Overloaded Moves . | . . . . . . . . . . . . . . . . . . . . Propulsion Burnouts . | . . . . . . . . . . . . . . . . . . . . Robots Hopped 1 | . . . . . . . . . . . . . . . . . 1 . . Potential Cave-ins . | . . . . . . . . . . . . . . . . . . . . Cave-ins Triggered . | . . . . . . . . . . . . . . . . . . . . Exploration Rate (%) 29 | 7 30 36 26 37 1 81 4 62 2 38 8 64 6 72 4 32 7 59 7 Regions Visited 19 Branch Regions 1 Pre-discovered Areas . | . . . . . . . . . . . . . . . . . . . . Known Exits Taken 8 | . 1 . . . 1 . 1 . 1 . 1 . 1 . 1 . 1 . . Unknown Exits Taken 4 | 1 . 1 1 1 . . . . . . . . . . . . . . . Scrap Searched . | . . . . . . . . . . . . . . . . . . . . Spaces Dug 3 | . . . . . . . . 3 . . . . . . . . . . . Terrain Destroyed 113 | . . . . . . 17 33 3 . 25 4 1 4 11 5 5 . . 5 Melee 3 | . . . . . . . . 3 . . . . . . . . . . . Projectile 31 | . . . . . . . . . . . . 1 4 11 5 5 . . 5 AOE 79 | . . . . . . 17 33 . . 25 4 . . . . . . . . Terrain Rammed . | . . . . . . . . . . . . . . . . . . . . Walls Destroyed . | . . . . . . . . . . . . . . . . . . . . Machines Disabled . | . . . . . . . . . . . . . . . . . . . . Actions | -11 -10 -10 -9 -8 -7 -7 -6 -6 -6 -6 -5 -5 -4 -4 -3 -3 -2 -2 -1 --------- Run | Yrd Mat Min Mat Mat Fac DSF Fac Gar Fac Gar Fac Gar Fac Gar Res Gar Res Gar Acc Total 8324 | 245 215 169 298 725 34 216 127 742 40 639 354 1006 238 659 432 376 326 686 797 Wait 1185 | 147 . . 38 111 . 21 3 26 . 12 16 142 18 23 260 5 85 88 190 Move 6086 | 83 196 161 223 541 32 160 101 598 40 473 279 746 181 552 149 320 211 526 514 Hop 1 | . . . . . . . . . . . . . . . . . 1 . . Pick Up 142 | 9 7 1 7 15 . 10 3 9 . 23 4 19 1 14 . 2 3 7 8 Fast Attach 52 | 1 . . 2 1 . . . 3 . 7 2 5 . 5 . 11 4 4 7 Attach 82 | 4 2 . . 6 1 2 3 5 . 22 3 4 3 6 . 1 4 . 16 Detach 12 | . . . . . . 1 . 1 . 1 . . . 1 . . . . 8 Swap 50 | . . . 1 4 . 1 3 4 . 13 4 13 1 3 . . 1 2 . Drop 85 | . 2 1 4 12 1 8 1 8 . 2 4 17 1 6 . 4 1 6 7 Fire 501 | 1 8 6 23 35 . 13 13 23 . 52 41 56 32 41 22 33 16 41 45 Melee 75 | . . . . . . . . 55 . 20 . . . . . . . . . Ram 2 | . . . . . . . . . . . . . . . . . . . 2 Kick . | . . . . . . . . . . . . . . . . . . . . Crush . | . . . . . . . . . . . . . . . . . . . . Escape Stasis 46 | . . . . . . . . 10 . 12 . 4 . 8 . . . 12 . Rewire 5 | . . . . . . . . . . 2 1 . 1 . 1 . . . . Trap . | . . . . . . . . . . . . . . . . . . . . Miscellaneous . | . . . . . . . . . . . . . . . . . . . . Route ------- -11/Scrapyard -10/Materials -10/Mines -9/Materials -8/Materials -7/Factory -7/DSF -6/Factory -6/Garrison (discovered 3 exits: *Fac x3) -6/Factory -6/Garrison -5/Factory (discovered 2 exits: *Fac / Gar) -5/Garrison (discovered 2 exits: *Fac x2) -4/Factory (discovered 2 exits: *Res / Gar) -4/Garrison (discovered 3 exits: *Res x3) -3/Research -3/Garrison -2/Research -2/Garrison (discovered 2 exits: *Acc x2) -1/Access History --------- Turn | Location | Event 5 | -11/Scrapyard | Discovered new exit (range 15) 254 | -11/Scrapyard | Entered Materials 306 | -10/Materials | Build established: Mutant 324 | -10/Materials | Discovered new exit (range 16) 498 | -10/Materials | Identified exit to Mines 522 | -10/Materials | Entered Mines 557 | -10/Mines | Discovered new exit (range 8) 610 | -10/Mines | YI-UF0 nonchalantly dropped a Grenade Launcher on the ground 625 | -10/Mines | Assisted by bots powering up and referring to "LRC-V3" 734 | -10/Mines | Entered Materials 734 | -9/Materials | Accompanied by 3 allies 734 | -9/Materials | Evolved 2 slots: Propulsion x2 1096 | -9/Materials | Discovered new exit (range 8) 1118 | -9/Materials | Entered another Materials area 1118 | -8/Materials | Accompanied by 1 ally 1118 | -8/Materials | Evolved 2 slots: Propulsion x1, Utility x1 1418 | -8/Materials | Build established: Scavenger-Mutant 1624 | -8/Materials | Discovered new exit (range 4) 1751 | -8/Materials | Build established: Mutant 2047 | -8/Materials | Repaired Lgt. Armor Plating 2062 | -8/Materials | Entered Factory 2062 | -7/Factory | Evolved 2 slots: Propulsion x1, Utility x1 2107 | -7/Factory | Identified exit to DSF 2109 | -7/Factory | Entered DSF 2162 | -7/DSF | Additional patrols routed to DSF 2383 | -7/DSF | Discovered new exit (range 15) 2406 | -7/DSF | Sterilization system engaged 2410 | -7/DSF | Entered Factory 2410 | -6/Factory | Evolved 2 slots: Utility x1, Weapon x1 2605 | -6/Factory | Identified exit to Garrison 2605 | -6/Factory | Entered Garrison 2765 | -6/Garrison | Triggered checkpoint 2794 | -6/Garrison | Garrison Relay disabled 2818 | -6/Garrison | Garrison Relay disabled 2900 | -6/Garrison | Spotted B-75 Beast 3009 | -6/Garrison | Triggered checkpoint 3027 | -6/Garrison | Triggered checkpoint 3110 | -6/Garrison | Discovered new exit (range 8) 3159 | -6/Garrison | Triggered checkpoint 3279 | -6/Garrison | Triggered checkpoint 3298 | -6/Garrison | Lost 3 parts (1p2u) 3413 | -6/Garrison | Discovered new exit (range 15) 3449 | -6/Garrison | Triggered checkpoint 3495 | -6/Garrison | Garrison Relay disabled 3594 | -6/Garrison | Build established: Scavenger-Mutant 3648 | -6/Garrison | Discovered new exit (range 11) 3688 | -6/Garrison | Installed Relay Interface Framework 3700 | -6/Garrison | Entered Factory 3752 | -6/Factory | Identified exit to Garrison 3752 | -6/Factory | Entered Garrison 3780 | -6/Garrison | Triggered checkpoint 3820 | -6/Garrison | Spotted B-75 Beast 3848 | -6/Garrison | Learned Factory security intel 3878 | -6/Garrison | Garrison Relay disabled 3932 | -6/Garrison | Destroyed B-75 Beast 3953 | -6/Garrison | Lost 3 parts (1n2u) 3971 | -6/Garrison | Build established: Bothacker-Mutant 3990 | -6/Garrison | Triggered checkpoint 3990 | -6/Garrison | Triggered checkpoint 4080 | -6/Garrison | System corruption reached 10% 4087 | -6/Garrison | Destroyed 8 combat bots 4137 | -6/Garrison | Core integrity fell below 50% 4180 | -6/Garrison | Lost 21 parts (2p9n4u6w) 4226 | -6/Garrison | Expanded RIF knowledge: Coupler Efficiency 4578 | -6/Garrison | Discovered new exit (range 10) 4580 | -6/Garrison | Triggered checkpoint 4636 | -6/Garrison | Entered Factory 4636 | -5/Factory | Accompanied by 5 allies 4636 | -5/Factory | Evolved 2 slots: Power x1, Utility x1 4728 | -5/Factory | Discovered new exit (range 9) 4743 | -5/Factory | Build established: Bothacker-Gunner 4859 | -5/Factory | Garrison activated, responded to threat 4912 | -5/Factory | Lost 5 allies 5116 | -5/Factory | Identified exit to Garrison 5116 | -5/Factory | Entered Garrison 5116 | -5/Garrison | Accompanied by 1 ally 5156 | -5/Garrison | Triggered checkpoint 5182 | -5/Garrison | Garrison Relay disabled 5481 | -5/Garrison | Lost 3 parts (2n1w) 5505 | -5/Garrison | Triggered checkpoint 5556 | -5/Garrison | Triggered checkpoint 5614 | -5/Garrison | Triggered checkpoint 5711 | -5/Garrison | Discovered new exit (range 14) 5752 | -5/Garrison | Triggered checkpoint 5843 | -5/Garrison | Spotted B-75 Beast 5843 | -5/Garrison | Spotted B-75 Beast 5849 | -5/Garrison | Build established: Scavenger-Tank 5852 | -5/Garrison | Assimilated Beast 6a with formatsys_high 5861 | -5/Garrison | Allies destroyed B-75 Beast 5920 | -5/Garrison | Triggered checkpoint 6020 | -5/Garrison | Discovered new exit (range 11) 6065 | -5/Garrison | Expanded RIF knowledge: Hotswap 6076 | -5/Garrison | Triggered checkpoint 6260 | -5/Garrison | Garrison Relay disabled 6361 | -5/Garrison | Entered Factory 6361 | -4/Factory | Accompanied by 1 ally 6361 | -4/Factory | Evolved 2 slots: Utility x1, Weapon x1 6400 | -4/Factory | Discovered new exit (range 15) 6526 | -4/Factory | Garrison activated, responded to threat 6533 | -4/Factory | Spotted B-86 Titan 6545 | -4/Factory | Destroyed B-86 Titan 6609 | -4/Factory | Lost 3 allies 6672 | -4/Factory | Identified exit to Garrison 6680 | -4/Factory | Entered Garrison 6680 | -4/Garrison | Accompanied by 4 allies 6720 | -4/Garrison | Triggered checkpoint 6758 | -4/Garrison | Garrison Relay disabled 6762 | -4/Garrison | Build established: Bothacker-Gunner 6816 | -4/Garrison | Spotted B-86 Titan 6888 | -4/Garrison | Allies destroyed B-86 Titan 6934 | -4/Garrison | Triggered checkpoint 6964 | -4/Garrison | Triggered checkpoint 6986 | -4/Garrison | Lost 5 allies 7077 | -4/Garrison | Discovered new exit (range 13) 7198 | -4/Garrison | Triggered checkpoint 7250 | -4/Garrison | Garrison Relay disabled 7257 | -4/Garrison | Lost 4 parts (2n2u) 7313 | -4/Garrison | Discovered new exit (range 69) 7313 | -4/Garrison | Discovered new exit (range 16) 7313 | -4/Garrison | Discovered new exit (range 49) 7436 | -4/Garrison | Garrison Relay disabled 7456 | -4/Garrison | Expanded RIF knowledge: Robot Detection 7480 | -4/Garrison | Triggered checkpoint 7534 | -4/Garrison | Entered Research 7534 | -3/Research | Accompanied by 2 allies 7534 | -3/Research | Evolved 2 slots: Utility x2 7760 | -3/Research | Build established: Botlord-Tank 7937 | -3/Research | Identified exit to Garrison 8035 | -3/Research | Entered Garrison 8035 | -3/Garrison | Accompanied by 4 allies 8093 | -3/Garrison | Triggered checkpoint 8182 | -3/Garrison | Destroyed 9 combat bots 8183 | -3/Garrison | Lost 4 allies 8202 | -3/Garrison | Garrison Relay disabled 8331 | -3/Garrison | Lost 12 parts (1p5n2u4w) 8428 | -3/Garrison | Spotted B-86 Titan 8440 | -3/Garrison | Discovered new exit (range 12) 8444 | -3/Garrison | Expanded RIF knowledge: Signal Jamming 8460 | -3/Garrison | Entered Research 8460 | -2/Research | Evolved 2 slots: Power x1, Propulsion x1 8557 | -2/Research | Build established: Botlord-Mutant 8658 | -2/Research | Garrison activated, responded to threat 8715 | -2/Research | Identified exit to Garrison 8720 | -2/Research | Entered Garrison 8720 | -2/Garrison | Accompanied by 1 ally 8733 | -2/Garrison | Garrison Relay disabled 8791 | -2/Garrison | Spotted B-90 Cyclops 8809 | -2/Garrison | Garrison Relay disabled 8830 | -2/Garrison | Triggered checkpoint 8834 | -2/Garrison | Discovered new exit (range 12) 8838 | -2/Garrison | Triggered checkpoint 8845 | -2/Garrison | Triggered checkpoint 8873 | -2/Garrison | Lost 3 allies 8886 | -2/Garrison | Garrison Relay disabled 8902 | -2/Garrison | Learned Access security intel 8910 | -2/Garrison | Triggered checkpoint 8914 | -2/Garrison | Triggered checkpoint 8914 | -2/Garrison | Triggered checkpoint 8926 | -2/Garrison | Discovered new exit (range 8) 8941 | -2/Garrison | Spotted B-75 Beast 8942 | -2/Garrison | Rewired B-86 Titan 8946 | -2/Garrison | Rewired B-90 Cyclops 8971 | -2/Garrison | Build established: Botlord-Sprinter 8984 | -2/Garrison | Allies destroyed B-75 Beast 9050 | -2/Garrison | Entered Access 9050 | -1/Access | Evolved 2 slots: Propulsion x1, Utility x1 9051 | -1/Access | Lost 6 parts (2p2n2w) 9423 | -1/Access | Lost 5 parts (5n) 9525 | -1/Access | Core integrity fell below 50% 9581 | -1/Access | Lost 15 parts (6n7u2w) 9601 | -1/Access | Core integrity fell below 20% 9611 | -1/Access | Destroyed by G-73 Enforcer with Phase Gun Last Messages --------------- Relay Coupler [Demolisher] destroyed. W-44 Eye distress signal jammed. Slammed into S-43 Plague. W-44 Eye distress signal jammed. Acquired 39 matter. P-80 Master resets P-80 Master, system corruption cleaned. Acquired 25 matter. W-44 Eye distress signal jammed. Acquired Xenon Bombardment Thruster. W-44 Eye distress signal jammed. P-80 Master resets P-80 Master, system corruption cleaned. W-44 Eye distress signal jammed. S-43 Plague destroyed. Xenon Bombardment Thruster destroyed. W-44 Eye distress signal jammed. Relay Coupler [NC] destroyed. Relay Coupler [Grunt] destroyed. [Achievement: 20k Club] Map ----- +----------------------------------------------------+ | # #????????????????????????????????? | | # #????????????????????????????????? | | #%= #????????????????????????????????? | | /% #????????????????????????????????? | | # [= #????????????????????????????????? | | # %* #????????????????????????????????? | | #*% #????????????????????????????????? | | # #????????????????????????????????? | | # #????????????????????????????????? | | ###################???????????????????????????? | | #??? #???????????????????????????? | | #??? #???????????????????????????? | | #???? #???????????????????????????? | | #???"""" #???????????????????????????? | | #??""""" #???????????????????????????? | | #??""""" #???????????????????????????? | | #?#""""" ! #???????????????????????????? | | #?#""""" #???????????????????????????? | | #?# #??##############???????????? | | #?# #??# #???????????? | | ##########+###+####### #???????????? | | + """ #???????????? | | # """ #???????????? | | " # =""g #???????????? | | " " + gF""g #####???????? | | " #@ g """g=/ #???????? | | # p =[%#####???????? | | #!!w gg =p=#???????????? | | ################# ####!!! % #???????????? | | #???????????????# #??#!!! b #???????????? | | #???????????????# #??# #???????????? | | #???????????????#/#??##############???????????? | | #??????????????? ???????????????????????????? | | #??????????????? ???????????????????????????? | | #??????????????? ???????????????????????????? | | ?????????????? ???????????????????????????? | | ????????????? ??????????????????????????? | | ?????????????? ???????????????????????????? | | ?????????????????????????????????????????? | | ????????????????????????????????????????? | | ????????????????????????????????????????? | | ??????????????????????????????????????????? | | #####????????????????????????????????????????????? | | ?????????????????????????????????????????????????? | | ?????????????????????????????????????????????????? | | ?????????????????????????????????????????????????? | | ?????????????????????????????????????????????????? | | ?????????????????????????????????????????????????? | | ?????????????????????????????????????????????????? | | ?????????????????????????????????????????????????? | +----------------------------------------------------+ Best States ------------- Heat Dissipation 52 Energy Generation 32 Energy Capacity 360 Matter Stores 300 Matter Capacity 300 Sight Range 16 Robot Scan Range 15 Terrain Scan Range 16 Terrain Scan Density 10 ECM Strength 2 Armor Coverage 825 Resistance: KI 50 Resistance: TH 35 Resistance: EX 20 Resistance: EM 20 Resistance: I 20 Resistance: S 20 Resistance: P 20 Evasion (%) 76 Target Analysis 5 Recoil Reduction 1 Offensive Hacking 24 Defensive Hacking 10 Relay Coupler Types 7 Relay Coupler Value 277 Item Schematics ----------------- Lrg. Storage Unit | -9/Materials | Scanalyzed Flight Unit | -9/Materials | Scanalyzed Grenade Launcher | -9/Materials | Scanalyzed Wheel | -9/Materials | Scanalyzed Lgt. Armored Exoskeleton | -8/Materials | Scanalyzed Remote Datajack | -8/Materials | Scanalyzed Minigun | -8/Materials | Scanalyzed Robot Schematics ------------------ None Fabricated ------------ Nothing Repaired ---------- Lgt. Armor Plating | 63% | -8/Materials Alien Tech Used ----------------- None Achievements -------------- 20k Club Denied? Error 47 Pwned Total Silence Challenges ------------ None Game ------ Seed ZioniteChromionReplica Manual? 0 Play Time 02:58:39 Cumulative 40.0 hours Start 2025.08.04 @ 13:20:23 End 2025.08.04 @ 16:23:42 Sessions 1 Manual Loads 0 Difficulty Adventurer Special Mode None Game No. 30 Rogue 0 Adventurer 30 Explorer 0 Win Type - Total 0 Types 0/0/0/0/0/0/0/0/0/0 Lore% 9 Gallery% 30 Achievement% 29 Wizard Run 0 Options --------- Layout 1 ASCII 0 Keyboard 0 Movement Mouse Keybinds 0 Fullscreen 1 Font 24/Smallcaps Map View 50x35 Zoom Use 0% Tactical HUD 0 Map Filters NONE Filters NONE Steam 1 RUN: 0425c784-4d99-4b7c-8b42-38434da1c044